Workbook

Sheet Assumptions
A1: Assumptions & Scenario Control
A3: Scenario (1=Base, 2=Bull, 3=Bear) | C3: 1 | G3: WACC Calculation
G4: Risk-Free Rate | H4: =Inputs_10K!G6 -> 0.043
A5: Forecast Drivers (by Scenario) | G5: Equity Risk Premium | H5: =Inputs_10K!G7 -> 0.055
A6: Driver | B6: Base | C6: Bull | D6: Bear | E6: Active | G6: Levered Beta | H6: =Inputs_10K!G8 -> 1.08
A7: Revenue Growth — Y1 | B7: 0.08 | C7: 0.12 | D7: 0.04 | E7: =CHOOSE($C$3,B7,C7,D7) -> 0.08 | G7: Cost of Equity | H7: =H4+H6*H5 -> 0.1024
A8: Revenue Growth — Y2 | B8: 0.07 | C8: 0.11 | D8: 0.03 | E8: 0.07 | G8: Pre-Tax Cost of Debt | H8: =Inputs_10K!G9 -> 0.045
A9: Revenue Growth — Y3 | B9: 0.06 | C9: 0.1 | D9: 0.03 | E9: 0.06 | G9: Marginal Tax Rate | H9: =Inputs_10K!G11 -> 0.21
A10: Revenue Growth — Y4 | B10: 0.05 | C10: 0.09 | D10: 0.02 | E10: 0.05 | G10: After-Tax Cost of Debt | H10: =H8*(1-H9) -> 0.03555
A11: Revenue Growth — Y5 | B11: 0.05 | C11: 0.08 | D11: 0.02 | E11: 0.05 | G11: Target Debt / (D+E) | H11: =Inputs_10K!G10 -> 0.06
A12: Gross Margin | B12: 0.88 | C12: 0.9 | D12: 0.85 | E12: 0.88 | G12: Target Equity / (D+E) | H12: =1-H11 -> 0.94
A13: SG&A % of Revenue | B13: 0.34 | C13: 0.33 | D13: 0.4 | E13: 0.34 | G13: WACC | H13: =H12*H7+H11*H10 -> 0.098389
A14: R&D % of Revenue | B14: 0.18 | C14: 0.16 | D14: 0.2 | E14: 0.18
A15: D&A % of Revenue | B15: 0.03 | C15: 0.03 | D15: 0.04 | E15: 0.03
A16: CapEx % of Revenue | B16: 0.045 | C16: 0.045 | D16: 0.05 | E16: 0.045
A17: NWC % of Revenue | B17: 0.1 | C17: 0.1 | D17: 0.11 | E17: 0.1
A18: Terminal Growth Rate (g) | B18: 0.025 | C18: 0.03 | D18: 0.02 | E18: 0.025
A19: Exit EV/EBITDA Multiple | B19: 9 | C19: 10 | D19: 7.5 | E19: 9
A21: LBO Deal Terms
A22: Entry EV / LTM EBITDA Multiple | B22: 6.349568198
A23: Transaction Fees (% of EV) | B23: 0.02
A24: Minimum Cash Balance | B24: 50
A25: Revolver Capacity | B25: 100
A26: Revolver Drawn at Close | B26: 50
A27: Term Loan B (% of Entry EV) | B27: 0.4
A28: Senior Notes (% of Entry EV) | B28: 0.2
A29: Revolver Interest Rate | B29: 0.065
A30: Term Loan B Interest Rate | B30: 0.075
A31: Senior Notes Interest Rate | B31: 0.09
A32: TLB Mandatory Amort (% p.a.) | B32: 0.01
A33: Cash Sweep % of Excess FCF | B33: 1

Sheet DCF
A1: DCF
B2: FY2023 | C2: FY2024 | D2: FY2025 | E2: FY2026 | F2: FY2027 | G2: FY2028 | H2: FY2029 | I2: FY2030
A3: Revenue | B3: =Inputs_10K!B5 -> 19409 | C3: =Inputs_10K!C5 -> 21505 | D3: =Inputs_10K!D5 -> 23769 | E3: =D3*(1+Assumptions!$E$7) -> 25670.52 | F3: =E3*(1+Assumptions!$E$8) -> 27467.4564 | G3: =F3*(1+Assumptions!$E$9) -> 29115.50378 | H3: =G3*(1+Assumptions!$E$10) -> 30571.27897 | I3: =H3*(1+Assumptions!$E$11) -> 32099.84292
A4: % Growth | C4: =C3/B3-1 -> 0.1079911381 | D4: =D3/C3-1 -> 0.1052778424 | E4: =Assumptions!$E$7 -> 0.08 | F4: =Assumptions!$E$8 -> 0.07 | G4: =Assumptions!$E$9 -> 0.06 | H4: =Assumptions!$E$10 -> 0.05 | I4: =Assumptions!$E$11 -> 0.05
A5: COGS | B5: =Inputs_10K!B6 -> 2354 | C5: =Inputs_10K!C6 -> 2358 | D5: =Inputs_10K!D6 -> 2551 | E5: =E3-E6 -> 3080.4624 | F5: =F3-F6 -> 3296.094768 | G5: =G3-G6 -> 3493.860454 | H5: =H3-H6 -> 3668.553477 | I5: =I3-I6 -> 3851.981151
A6: Gross Profit | B6: =B3-B5 -> 17055 | C6: =C3-C5 -> 19147 | D6: =D3-D5 -> 21218 | E6: =E3*Assumptions!$E$12 -> 22590.0576 | F6: =F3*Assumptions!$E$12 -> 24171.36163 | G6: =G3*Assumptions!$E$12 -> 25621.64333 | H6: =H3*Assumptions!$E$12 -> 26902.7255 | I6: =I3*Assumptions!$E$12 -> 28247.86177
A7: % Margin | B7: =B6/B3 -> 0.8787160596 | C7: 0.8903510811 | D7: 0.8926753334 | E7: 0.88 | F7: 0.88 | G7: 0.88 | H7: 0.88 | I7: 0.88
A8: SG&A | B8: =Inputs_10K!B7 -> 6764 | C8: =Inputs_10K!C7 -> 7293 | D8: =Inputs_10K!D7 -> 8061 | E8: =E3*Assumptions!$E$13 -> 8727.9768 | F8: =F3*Assumptions!$E$13 -> 9338.935176 | G8: =G3*Assumptions!$E$13 -> 9899.271287 | H8: =H3*Assumptions!$E$13 -> 10394.23485 | I8: =I3*Assumptions!$E$13 -> 10913.94659
A9: R&D | B9: =Inputs_10K!B8 -> 3473 | C9: =Inputs_10K!C8 -> 3944 | D9: =Inputs_10K!D8 -> 4294 | E9: =E3*Assumptions!$E$14 -> 4620.6936 | F9: =F3*Assumptions!$E$14 -> 4944.142152 | G9: =G3*Assumptions!$E$14 -> 5240.790681 | H9: =H3*Assumptions!$E$14 -> 5502.830215 | I9: =I3*Assumptions!$E$14 -> 5777.971726
A10: EBITDA | B10: =B6-B8-B9 -> 6818 | C10: 7910 | D10: 8863 | E10: 9241.3872 | F10: 9888.284304 | G10: 10481.58136 | H10: 11005.66043 | I10: 11555.94345
A11: % Margin | B11: =B10/B3 -> 0.3512803339 | C11: 0.3678214369 | D11: 0.3728806429 | E11: 0.36 | F11: 0.36 | G11: 0.36 | H11: 0.36 | I11: 0.36
A12: D&A | B12: =Inputs_10K!B9 -> 872 | C12: =Inputs_10K!C9 -> 857 | D12: =Inputs_10K!D9 -> 818 | E12: =E3*Assumptions!$E$15 -> 770.1156 | F12: =F3*Assumptions!$E$15 -> 824.023692 | G12: =G3*Assumptions!$E$15 -> 873.4651135 | H12: =H3*Assumptions!$E$15 -> 917.1383692 | I12: =I3*Assumptions!$E$15 -> 962.9952877
A13: EBIT | B13: =B10-B12 -> 5946 | C13: 7053 | D13: 8045 | E13: 8471.2716 | F13: 9064.260612 | G13: 9608.116249 | H13: 10088.52206 | I13: 10592.94816
A14: % Margin | B14: =B13/B3 -> 0.306352723 | C14: 0.3279702395 | D14: 0.3384660692 | E14: 0.33 | F14: 0.33 | G14: 0.33 | H14: 0.33 | I14: 0.33
A15: Taxes on EBIT | E15: =E13*Assumptions!$H$9 -> 1778.967036 | F15: =F13*Assumptions!$H$9 -> 1903.494729 | G15: =G13*Assumptions!$H$9 -> 2017.704412 | H15: =H13*Assumptions!$H$9 -> 2118.589633 | I15: =I13*Assumptions!$H$9 -> 2224.519114
A16: NOPAT | E16: =E13-E15 -> 6692.304564 | F16: =F13-F15 -> 7160.765883 | G16: =G13-G15 -> 7590.411836 | H16: =H13-H15 -> 7969.932428 | I16: =I13-I15 -> 8368.42905
A17: (+) D&A | E17: =E12 -> 770.1156 | F17: =F12 -> 824.023692 | G17: =G12 -> 873.4651135 | H17: =H12 -> 917.1383692 | I17: =I12 -> 962.9952877
A18: (–) CapEx | B18: =Inputs_10K!B25 -> 360 | C18: =Inputs_10K!C25 -> 183 | D18: =Inputs_10K!D25 -> 179 | E18: =E3*Assumptions!$E$16 -> 1155.1734 | F18: =F3*Assumptions!$E$16 -> 1236.035538 | G18: =G3*Assumptions!$E$16 -> 1310.19767 | H18: =H3*Assumptions!$E$16 -> 1375.707554 | I18: =I3*Assumptions!$E$16 -> 1444.492931
A19: (–) Δ NWC | E19: =(E3-D3)*Assumptions!$E$17 -> 190.152 | F19: =(F3-E3)*Assumptions!$E$17 -> 179.69364 | G19: =(G3-F3)*Assumptions!$E$17 -> 164.8047384 | H19: =(H3-G3)*Assumptions!$E$17 -> 145.5775189 | I19: =(I3-H3)*Assumptions!$E$17 -> 152.8563949
A20: Unlevered FCF | E20: =E16+E17-E18-E19 -> 6117.094764 | F20: =F16+F17-F18-F19 -> 6569.060397 | G20: =G16+G17-G18-G19 -> 6988.874541 | H20: =H16+H17-H18-H19 -> 7365.785725 | I20: =I16+I17-I18-I19 -> 7734.075011
A21: Discount Period | E21: 1 | F21: 2 | G21: 3 | H21: 4 | I21: 5
A22: Discount Factor | E22: =1/(1+Assumptions!$H$13)^E21 -> 0.9104242668 | F22: =1/(1+Assumptions!$H$13)^F21 -> 0.8288723456 | G22: =1/(1+Assumptions!$H$13)^G21 -> 0.7546254975 | H22: =1/(1+Assumptions!$H$13)^H21 -> 0.6870293653 | I22: =1/(1+Assumptions!$H$13)^I21 -> 0.6254882062
A23: PV of Unlevered FCF | E23: =E20*E22 -> 5569.151516 | F23: =F20*F22 -> 5444.9125 | G23: =G20*G22 -> 5273.982928 | H23: =H20*H22 -> 5060.511091 | I23: =I20*I22 -> 4837.572705
A26: Valuation
A28: Sum of PV | B28: =SUM(E23:I23) -> 26186.13074
A29: Terminal Value | B29: =I20*(1+Assumptions!$E$18)/(Assumptions!$H$13-Assumptions!$E$18) -> 108019.2793
A30: Terminal Value (Exit EV/EBITDA) | B30: =I10*Assumptions!$E$19 -> 104003.4911
A31: PV of TV (avg of methods) | B31: =AVERAGE(B29:B30)*I22 -> 66308.87114
A32: Enterprise Value | B32: =B28+B31 -> 92495.00188
A33: (–) Net Debt | B33: =Inputs_10K!D23-Inputs_10K!D13 -> 779
A34: Equity Value | B34: =B32-B33 -> 91716.00188
A35: Shares Outstanding (mm) | B35: =Inputs_10K!G3 -> 410.5
A36: Implied Share Price | B36: =B34/B35 -> 223.4250959
A37: Current Share Price | B37: =Inputs_10K!G4 -> 245

Sheet Summary
A2: Current Share Price | B2: =Inputs_10K!G4 -> 245
A3: Market Cap ($mm) | B3: =Inputs_10K!G3*Inputs_10K!G4 -> 100572.5
A4: Scenario | B4: =CHOOSE(Assumptions!C3,"Base","Bull","Bear") -> Base
A6: Headline Outputs
A7: Metric | B7: Value | C7: vs Current | D7: Notes
A8: WACC | B8: =Assumptions!H13 -> 0.098389 | D8: From CAPM + after-tax Kd, target D/(D+E)
A9: DCF Enterprise Value | B9: =DCF!B32 -> 92495.00188
A10: DCF Implied Share Price | B10: =DCF!B36 -> 223.4250959 | C10: =B10/B2-1 -> -0.08806083289
A11: LBO Sponsor Equity Invested | B11: =LBO!B22 -> 24415.01363
A12: LBO MOIC (5-yr) | B12: =LBO!B73 -> 3.79882018
A13: LBO Sponsor IRR (5-yr) | B13: =LBO!B76 -> 0.3059596152
A16: Football Field (per share)
A17: Methodology | B17: Low | C17: Mid | D17: High
A18: DCF (±10% around implied) | B18: =DCF!B36*0.9 -> 201.0825863 | C18: =DCF!B36 -> 223.4250959 | D18: =DCF!B36*1.1 -> 245.7676055
A19: LBO (at current Entry Multiple) | B19: =(LBO!B8*0.95-DCF!B33)/DCF!B35 -> 128.3396146 | C19: =(LBO!B8-DCF!B33)/DCF!B35 -> 135.1942093 | D19: =(LBO!B8*1.05-DCF!B33)/DCF!B35 -> 142.0488041
A21: Current Share Price | B21: =Inputs_10K!G4 -> 245

Sheet LBO
A1: LBO
A3: ($mm) | B3: At Close | C3: FY2026 | D3: FY2027 | E3: FY2028 | F3: FY2029 | G3: FY2030
A5: Transaction Assumptions
A6: LTM EBITDA (FY2025) | B6: =DCF!D10 -> 8863
A7: Entry EV / LTM EBITDA | B7: =Assumptions!B22 -> 6.349568198
A8: Entry Enterprise Value | B8: =B6*B7 -> 56276.22294
A10: Sources & Uses
A11: Uses
A12: Purchase Enterprise Value | B12: =B8 -> 56276.22294
A13: Refinance Existing Debt | B13: =Inputs_10K!D23 -> 6210
A14: Transaction Fees | B14: =B8*Assumptions!B23 -> 1125.524459
A15: Total Uses | B15: =SUM(B12:B14) -> 63611.7474
A17: Sources
A18: Revolver (Drawn at Close) | B18: =Assumptions!B26 -> 50
A19: Term Loan B | B19: =B8*Assumptions!B27 -> 22510.48917
A20: Senior Notes | B20: =B8*Assumptions!B28 -> 11255.24459
A21: Excess Cash Used | B21: =MAX(Inputs_10K!D13-Assumptions!B24,0) -> 5381
A22: Sponsor Equity (plug) | B22: =B15-SUM(B18:B21) -> 24415.01363
A23: Total Sources | B23: =SUM(B18:B22) -> 63611.7474
A24: Check (Sources − Uses) | B24: =B23-B15 -> 0
A26: Pro Forma Operating Model
A27: Revenue | C27: =DCF!E3 -> 25670.52 | D27: =DCF!F3 -> 27467.4564 | E27: =DCF!G3 -> 29115.50378 | F27: =DCF!H3 -> 30571.27897 | G27: =DCF!I3 -> 32099.84292
A28: EBITDA | C28: =DCF!E10 -> 9241.3872 | D28: =DCF!F10 -> 9888.284304 | E28: =DCF!G10 -> 10481.58136 | F28: =DCF!H10 -> 11005.66043 | G28: =DCF!I10 -> 11555.94345
A29: % Margin | C29: =C28/C27 -> 0.36 | D29: =D28/D27 -> 0.36 | E29: =E28/E27 -> 0.36 | F29: =F28/F27 -> 0.36 | G29: =G28/G27 -> 0.36
A30: D&A | C30: =DCF!E12 -> 770.1156 | D30: =DCF!F12 -> 824.023692 | E30: =DCF!G12 -> 873.4651135 | F30: =DCF!H12 -> 917.1383692 | G30: =DCF!I12 -> 962.9952877
A31: EBIT | C31: =C28-C30 -> 8471.2716 | D31: =D28-D30 -> 9064.260612 | E31: =E28-E30 -> 9608.116249 | F31: =F28-F30 -> 10088.52206 | G31: =G28-G30 -> 10592.94816
A32: (-) Interest Expense | C32: =C62 -> 2704.508701 | D32: =D62 -> 2405.968734 | E32: =E62 -> 2055.842852 | F32: =F62 -> 1653.48595 | G32: =G62 -> 1199.021063
A33: Pretax Income | C33: =C31-C32 -> 5766.762899 | D33: =D31-D32 -> 6658.291878 | E33: =E31-E32 -> 7552.273397 | F33: =F31-F32 -> 8435.036111 | G33: =G31-G32 -> 9393.927101
A34: (-) Taxes | C34: =MAX(C33,0)*Assumptions!$H$9 -> 1211.020209 | D34: =MAX(D33,0)*Assumptions!$H$9 -> 1398.241294 | E34: =MAX(E33,0)*Assumptions!$H$9 -> 1585.977413 | F34: =MAX(F33,0)*Assumptions!$H$9 -> 1771.357583 | G34: =MAX(G33,0)*Assumptions!$H$9 -> 1972.724691
A35: Net Income | C35: =C33-C34 -> 4555.74269 | D35: =D33-D34 -> 5260.050583 | E35: =E33-E34 -> 5966.295983 | F35: =F33-F34 -> 6663.678528 | G35: =G33-G34 -> 7421.20241
A36: (+) D&A | C36: =C30 -> 770.1156 | D36: =D30 -> 824.023692 | E36: =E30 -> 873.4651135 | F36: =F30 -> 917.1383692 | G36: =G30 -> 962.9952877
A37: (-) CapEx | C37: =DCF!E18 -> 1155.1734 | D37: =DCF!F18 -> 1236.035538 | E37: =DCF!G18 -> 1310.19767 | F37: =DCF!H18 -> 1375.707554 | G37: =DCF!I18 -> 1444.492931
A38: (-) NWC | C38: =DCF!E19 -> 190.152 | D38: =DCF!F19 -> 179.69364 | E38: =DCF!G19 -> 164.8047384 | F38: =DCF!H19 -> 145.5775189 | G38: =DCF!I19 -> 152.8563949
A39: Levered FCF (pre-debt paydown) | C39: =C35+C36-C37-C38 -> 3980.53289 | D39: =D35+D36-D37-D38 -> 4668.345097 | E39: =E35+E36-E37-E38 -> 5364.758688 | F39: =F35+F36-F37-F38 -> 6059.531824 | G39: =G35+G36-G37-G38 -> 6786.848371
A42: Debt Schedule
A44: Revolver
A45: Beginning Balance | B45: =B18 -> 50 | C45: =B47 -> 50 | D45: =C47 -> 50 | E45: =D47 -> 50 | F45: =E47 -> 50 | G45: =F47 -> 50
A46: Draw / (Paydown) | B46: 0 | C46: 0 | D46: 0 | E46: 0 | F46: 0 | G46: 0
A47: Ending Balance | B47: =B18 -> 50 | C47: =C45+C46 -> 50 | D47: =D45+D46 -> 50 | E47: =E45+E46 -> 50 | F47: =F45+F46 -> 50 | G47: =G45+G46 -> 50
A48: Interest (Beg × Rate) | B48: 0 | C48: =C45*Assumptions!$B$29 -> 3.25 | D48: =D45*Assumptions!$B$29 -> 3.25 | E48: =E45*Assumptions!$B$29 -> 3.25 | F48: =F45*Assumptions!$B$29 -> 3.25 | G48: =G45*Assumptions!$B$29 -> 3.25
A50: Term Loan B
A51: Beginning Balance | B51: 0 | C51: =B54 -> 22510.48917 | D51: =C54 -> 18529.95628 | E51: =D54 -> 13861.61119 | F51: =E54 -> 8496.852499 | G51: =F54 -> 2437.320675
A52: (–) Mandatory Amort | B52: 0 | C52: =MIN(C51,$B$19*Assumptions!$B$32) -> 225.1048917 | D52: =MIN(D51,$B$19*Assumptions!$B$32) -> 225.1048917 | E52: =MIN(E51,$B$19*Assumptions!$B$32) -> 225.1048917 | F52: =MIN(F51,$B$19*Assumptions!$B$32) -> 225.1048917 | G52: =MIN(G51,$B$19*Assumptions!$B$32) -> 225.1048917
A53: (–) Cash Sweep | B53: 0 | C53: =MAX(0,MIN(C51-C52,(C39-C52)*Assumptions!$B$33)) -> 3755.427998 | D53: =MAX(0,MIN(D51-D52,(D39-D52)*Assumptions!$B$33)) -> 4443.240206 | E53: =MAX(0,MIN(E51-E52,(E39-E52)*Assumptions!$B$33)) -> 5139.653797 | F53: =MAX(0,MIN(F51-F52,(F39-F52)*Assumptions!$B$33)) -> 5834.426932 | G53: =MAX(0,MIN(G51-G52,(G39-G52)*Assumptions!$B$33)) -> 2212.215783
A54: Ending Balance | B54: =B19 -> 22510.48917 | C54: =C51-C52-C53 -> 18529.95628 | D54: =D51-D52-D53 -> 13861.61119 | E54: =E51-E52-E53 -> 8496.852499 | F54: =F51-F52-F53 -> 2437.320675 | G54: =G51-G52-G53 -> 0
A55: Interest (Beg × Rate) | B55: 0 | C55: =C51*Assumptions!$B$30 -> 1688.286688 | D55: =D51*Assumptions!$B$30 -> 1389.746721 | E55: =E51*Assumptions!$B$30 -> 1039.620839 | F55: =F51*Assumptions!$B$30 -> 637.2639374 | G55: =G51*Assumptions!$B$30 -> 182.7990506
A57: Senior Notes
A58: Beginning Balance | B58: 0 | C58: =B59 -> 11255.24459 | D58: =C59 -> 11255.24459 | E58: =D59 -> 11255.24459 | F58: =E59 -> 11255.24459 | G58: =F59 -> 11255.24459
A59: Ending Balance | B59: =B20 -> 11255.24459 | C59: =C58 -> 11255.24459 | D59: =D58 -> 11255.24459 | E59: =E58 -> 11255.24459 | F59: =F58 -> 11255.24459 | G59: =G58 -> 11255.24459
A60: Interest (Beg × Rate) | B60: 0 | C60: =C58*Assumptions!$B$31 -> 1012.972013 | D60: =D58*Assumptions!$B$31 -> 1012.972013 | E60: =E58*Assumptions!$B$31 -> 1012.972013 | F60: =F58*Assumptions!$B$31 -> 1012.972013 | G60: =G58*Assumptions!$B$31 -> 1012.972013
A62: Total Interest Expense | B62: 0 | C62: =C48+C55+C60 -> 2704.508701 | D62: =D48+D55+D60 -> 2405.968734 | E62: =E48+E55+E60 -> 2055.842852 | F62: =F48+F55+F60 -> 1653.48595 | G62: =G48+G55+G60 -> 1199.021063
A63: Total Debt (End) | B63: =B47+B54+B59 -> 33815.73376 | C63: 29835.20087 | D63: 25166.85577 | E63: 19802.09709 | F63: 13742.56526 | G63: 11305.24459
A66: Sponsor Returns
A67: Exit Year EBITDA (FY2030) | B67: =G28 -> 11555.94345
A68: Exit EV / EBITDA Multiple | B68: =Assumptions!$E$19 -> 9
A69: Exit Enterprise Value | B69: =B67*B68 -> 104003.4911
A70: (–) Exit Net Debt | B70: =G63-Assumptions!B24 -> 11255.24459
A71: Exit Equity Value | B71: =B69-B70 -> 92748.24648
A72: Sponsor Equity Invested | B72: =B22 -> 24415.01363
A73: MOIC | B73: =B71/B72 -> 3.79882018
A75: CF Series for IRR | B75: =-B72 -> -24415.01363 | C75: 0 | D75: 0 | E75: 0 | F75: 0 | G75: =B71 -> 92748.24648
A76: Sponsor IRR | B76: =IRR(B75:G75) -> 0.3059596152

Sheet Inputs_10K
F1: Market/WACC Inputs
F3: Shares O/S | G3: 410.5
A4: Financials | B4: FY2023 | C4: FY2024 | D4: FY2025 | F4: Price | G4: 245
A5: Revenue | B5: 19409 | C5: 21505 | D5: 23769
A6: COGS | B6: 2354 | C6: 2358 | D6: 2551 | F6: Risk-Free Rate (10Y UST) | G6: 0.043
A7: SG&A | B7: 6764 | C7: 7293 | D7: 8061 | F7: Equity Risk Premium | G7: 0.055
A8: R&D | B8: 3473 | C8: 3944 | D8: 4294 | F8: Levered Beta | G8: 1.08
A9: D&A | B9: 872 | C9: 857 | D9: 818 | F9: Pre-Tax Cost of Debt | G9: 0.045
A10: Interest Expense | B10: 113 | C10: 169 | D10: 263 | F10: Target Debt / (D+E) | G10: 0.06
A11: Tax Expense | B11: 1371 | C11: 1371 | D11: 1604 | F11: Marginal Tax Rate | G11: 0.21
A12: Net Income | B12: 5428 | C12: 5560 | D12: 7130
A13: Cash & Equivalents | B13: 7141 | C13: 7613 | D13: 5431
A14: Accounts Receivable | B14: 2224 | C14: 2072 | D14: 2344
A15: Inventory | B15: 0 | C15: 0 | D15: 0
A16: Other Current Assets | B16: 1719 | C16: 1547 | D16: 2388
A17: Net PP&E | B17: 2030 | C17: 1936 | D17: 1873
A18: Goodwill & Intangibles | B18: 13893 | C18: 13570 | D18: 13352
A19: Other LT Assets | B19: 2772 | C19: 3492 | D19: 4108
A20: Accounts Payable | B20: 314 | C20: 361 | D20: 417
A21: Accrued Expenses | B21: 1942 | C21: 2336 | D21: 2648
A22: Other Current Liab | B22: 5995 | C22: 6325 | D22: 7135
A23: Total Debt | B23: 3634 | C23: 5628 | D23: 6210
A24: Other LT Liabilities | B24: 1376 | C24: 1475 | D24: 1463
A25: CapEx | B25: 360 | C25: 183 | D25: 179
